Cogmind - Beta 15 @@@ ROGUE MODE // 2025.06.01 @ 18:09:58 Player: Figgis Result: Self-destructed Performance ------------- Evolutions (2) 1000 Regions Visited (3) 600 Robots Destroyed (47) 235 Value Destroyed (1470) 1470 Prototype IDs (0) 0 Alien Tech Used (0) 0 Bonus (0) 0 TOTAL SCORE: 3305 Bonus ------- None Cogmind --------- Core Integrity 470/550 Matter 234/300 Energy 225/265 System Corruption 0% Temperature Cool (0) Movement Walking (190) Ox1 Location -8/Materials Parts ------- > --- POWER (1) -------- Improved Ion Engine > --- PROPULSION (4) --- Aluminum Leg Aluminum Leg Aluminum Leg > --- UTILITY (4) ------ Large Storage Unit Hardened Light Armor Plating Hardened Light Armor Plating Shield Generator > --- WEAPON (2) ------- Heavy Assault Rifle Light Cannon > --- INVENTORY (15) --- Deuterium Engine Deuterium Engine Deuterium Engine Aluminum Leg Improved Aluminum Leg Cesium-ion Thruster High-capacity Storage Unit Weight Redist. System Terrain Scanner Improved Terrain Scan Processor Improved Terrain Scan Processor Hardened Light Armor Plating Light Assault Rifle Mini Grenade Launcher Power Maul Peak State ------------ > --- POWER ------------ Improved Ion Engine > --- PROPULSION ------- Aluminum Leg Aluminum Leg Aluminum Leg Aluminum Leg > --- UTILITY ---------- Large Storage Unit Hardened Light Armor Plating Hardened Light Armor Plating Shield Generator > --- WEAPON ----------- Heavy Assault Rifle Light Cannon > --- INVENTORY -------- Deuterium Engine Deuterium Engine Deuterium Engine Aluminum Leg Improved Aluminum Leg Cesium-ion Thruster High-capacity Storage Unit Terrain Scanner Improved Terrain Scan Processor Improved Terrain Scan Processor Hardened Light Armor Plating Light Assault Rifle Mini Grenade Launcher Power Maul [Rating: 19] Favorites ----------- Power Ion Engine Engine Ion Engine Propulsion Aluminum Leg Leg Aluminum Leg Utility Large Storage Unit Device Shield Generator Storage Large Storage Unit Protection Hardened Light Armor Plating Weapon Light Cannon Ballistic Gun Light Assault Rifle Ballistic Cannon Light Cannon Build | -11 -10 -9 -8 ------- Run | Yrd Mat Mat Mat Slots Evolved 4 | . . 2 2 Power . | . . . . Propulsion 2 | . . 1 1 Utility 2 | . . 1 1 Weapon . | . . . . Parts Attached 28 | 3 5 13 7 Power 4 | . 1 2 1 Engine 4 | . 1 2 1 Core . | . . . . Reactor . | . . . . Propulsion 9 | 2 . 4 3 Treads . | . . . . Leg 9 | 2 . 4 3 Wheel . | . . . . Hover . | . . . . Flight . | . . . . Utility 10 | . 3 5 2 Device 4 | . 1 2 1 Storage 2 | . 2 . . Processor . | . . . . Hackware . | . . . . Protection 4 | . . 3 1 Artifact . | . . . . Weapon 5 | 1 1 2 1 Energy Gun . | . . . . Energy Cannon . | . . . . Ballistic Gun 2 | 1 . . 1 Ballistic Cannon 3 | . 1 2 . Launcher . | . . . . Special Weapon . | . . . . Impact Weapon . | . . . . Slashing Weapon . | . . . . Piercing Weapon . | . . . . Special Melee Weapon . | . . . . Unidentified Prototypes . | . . . . Parts Lost 12 | . . 6 6 Power 1 | . . . 1 Propulsion 5 | . . 3 2 Utility 3 | . . 2 1 Weapon 3 | . . 1 2 Highest Loss Streak 3 | . . 3 2 To Critical Strikes . | . . . . Average Backups 9 | 2 3 10 14 Power 2 | 1 1 2 3 Propulsion 1 | . . 1 2 Utility 2 | . . 2 5 Weapon 2 | 1 1 2 2 Tool/Special . | . . . . Unused Backups 20 | . 2 4 14 Power 8 | . . 4 4 Propulsion 2 | . . . 2 Utility 4 | . . . 4 Weapon 6 | . 2 . 4 Tool/Special . | . . . . Average Slot Usage (%) 91 | . 96 91 89 Engine 10 | . 12 11 8 Leg 32 | . 28 32 35 Device 7 | . 13 8 3 Storage 10 | . 12 11 9 Protection 7 | . . 6 15 Ballistic Gun 6 | . 14 6 2 Ballistic Cannon 14 | . 12 15 15 Peak Build Rating 19 | 3 7 16 19 Average Rating 11 | 2 6 11 16 On Entrance 6 | . 3 7 16 Naked Turns . | . . . . Heaviest Build 45 | 1 30 43 45 Greatest Support 40 | 3 20 30 40 Greatest Overweight (x) 2 | . 1 2 2 Average Overweight (x) . | . . . . Largest Inventory Capacity 15 | 5 15 15 15 Average Capacity 13 | 5 9 15 15 Most Carried 15 | 5 6 15 15 Average Carried 9 | 3 3 10 14 Final Capacity 15 | 5 15 15 15 Final Carried 15 | 5 6 15 15 Class Distribution -------------------- 94% | Mutant 5% | Scavenger-Mutant Dominant Class ---------------- Mutant | -10/Materials Mutant | -9/Materials Mutant | -8/Materials Resources | -11 -10 -9 -8 ----------- Run | Yrd Mat Mat Mat Matter Collected 1414 | 230 95 597 492 Remotely . | . . . . Salvage Created 1256 | . 159 711 386 Parts 77 | . 15 38 24 Haulers Intercepted 1 | . . . 1 Recyclers Shooed . | . . . . Parts Field Recycled . | . . . . Retrieved Matter . | . . . . Parts Self-Destructed . | . . . . Prevented . | . . . . Kills | -11 -10 -9 -8 ------- Run | Yrd Mat Mat Mat Combat Hostiles Destroyed 41 | . 8 20 13 Guns 3 | . 2 1 . Cannons 38 | . 6 19 13 Classes Destroyed 9 | . 3 3 3 Builder 1 | . . . 1 Hauler 1 | . . . 1 Recycler 1 | . . 1 . Watcher 3 | . 2 1 . Swarmer 9 | . 6 . 3 Grunt 18 | . 2 12 4 Brawler 2 | . . 1 1 Sentry 11 | . . 7 4 Hunter 1 | . . . 1 Best Kill Streak 5 | . 3 3 5 Combat Bots Only 4 | . 3 3 4 Max Kills in Single Turn 2 | . 1 1 2 Gunslinging . | . . . . Exploded . | . . . . Melee . | . . . . Uniques/NPCs Destroyed . | . . . . Combat | -11 -10 -9 -8 -------- Run | Yrd Mat Mat Mat Hostile Shots Fired 257 | . 38 120 99 Missed 57 | . 7 21 29 Hits 200 | . 31 99 70 Melee 8 | . . . 8 Projectile 192 | . 31 99 62 Critical Strikes 4 | . 1 . 3 Damage Taken 2108 | . 256 962 890 Core 265 | . 35 150 80 Absorbed by Shields 398 | . . 298 100 Core Remaining (%) 82 | 100 86 62 . Volleys Fired 160 | . 28 74 58 Largest 2 | . 2 2 2 Hottest 63 | . 50 63 63 Shots Fired 318 | . 56 147 115 Gun 79 | . 28 46 5 Cannon 239 | . 28 101 110 Launcher . | . . . . Special . | . . . . Kinetic 318 | . 56 147 115 Thermal . | . . . . Explosive . | . . . . Electromagnetic . | . . . . Robot Hit Streak 20 | . 5 20 10 Robot Miss Streak 4 | . 3 4 4 Penetration Max . | . . . . Secondary Targets . | . . . . Shots Hit Robots 202 | . 32 104 66 Core Hits 72 | . 13 36 23 Critical Kills . | . . . . Critical Parts Destroyed 1 | . . 1 . Critical Strikes 7 | . . 4 3 Destroy 1 | . . 1 . Blast 6 | . . 3 3 Melee Attacks . | . . . . Impact . | . . . . Slashing . | . . . . Piercing . | . . . . Sneak Attacks . | . . . . Combat Hostiles . | . . . . Follow-up Attacks . | . . . . Damage Inflicted 3276 | . 378 1640 1258 Guns 455 | . 155 256 44 Cannons 2817 | . 223 1380 1214 Explosions . | . . . . Melee . | . . . . Ramming 4 | . . 4 . Kinetic 3272 | . 378 1636 1258 Thermal . | . . . . Explosive . | . . . . Electromagnetic . | . . . . Impact . | . . . . Slashing . | . . . . Piercing . | . . . . Highest Corruption 1 | . . 1 . Average Corruption 1 | . . 1 . Corruption Purged . | . . . . Corruption Blocked . | . . . . Effects 4 | . . 4 . Matter Fused 1 | . . 1 . Heat Flow Errors 1 | . . 1 . Data Loss (minor) 2 | . . 2 . Overload Shots . | . . . . Overflow Damage 55 | . 14 17 24 Projectiles 55 | . 14 17 24 Explosions . | . . . . Melee . | . . . . Knockbacks 23 | . . 12 11 Impact . | . . . . Kinetic 22 | . . 12 10 Secondary 1 | . . . 1 Self-Inflicted Damage . | . . . . Shots . | . . . . Rammed . | . . . . Targets Rammed 1 | . . 1 . Kicked 1 | . . 1 . Crushed . | . . . . Highest Temperature 208 | . 38 208 201 Average Temperature 45 | . 11 36 64 Received Heat Transfer 674 | . 24 407 243 Siege Activations . | . . . . Martial Activations . | . . . . Shielding Activations . | . . . . Robots Disrupted . | . . . . Combat Hostiles . | . . . . Robots Corrupted . | . . . . Combat Hostiles . | . . . . Parts Fried . | . . . . Impact Corruptions . | . . . . Robots Melted . | . . . . Combat Hostiles . | . . . . Parts Melted . | . . . . Heat Transferred . | . . . . Parts Sabotaged . | . . . . Parts Stolen . | . . . . Parts Stripped . | . . . . Power Chain Reactions . | . . . . Alert | -11 -10 -9 -8 ------- Run | Yrd Mat Mat Mat Maximum Alert Level . | . . . . Low Security (%) 100 | 100 100 100 100 Level 1 . | . . . . Level 2 . | . . . . Level 3 . | . . . . Level 4 . | . . . . Level 5 . | . . . . High Security . | . . . . Max Security . | . . . . Peak Influence 198 | . 80 133 198 Initial 50 | . . 15 50 Average 62 | . 42 49 104 Influence Increases 1230 | . 217 588 425 Destroy 0b10 Robot/C 820 | . 160 400 260 Destroy 0b10 Robot/NC 30 | . 10 10 10 Destroy Leader 238 | . 34 122 82 Successful Hack 42 | . 13 24 5 Disable Machine 30 | . . 30 . Destroy Structure 10 | . . 2 8 Lose Combat Pursuer 60 | . . . 60 Influence Decreases 1101 | . 180 504 417 Entered New Map 93 | . . 22 71 Time Decay 888 | . 180 422 286 Lost Part 120 | . . 60 60 Squads Dispatched 7 | . 1 3 3 Investigation 1 | . . . 1 Extermination . | . . . . Reinforcement 6 | . 1 3 2 Assault . | . . . . Garrison . | . . . . Intercept . | . . . . Searches Triggered . | . . . . Construction Impeded 1 | . . . 1 Haulers Reinforced . | . . . . Active Scanning Responses . | . . . . Cargo Convoy Interrupts . | . . . . Stealth | -11 -10 -9 -8 --------- Run | Yrd Mat Mat Mat Distress Signals 5 | . 1 4 . Communications Jammed . | . . . . Distress Signals . | . . . . Times Spotted 66 | . 12 30 24 Peak Tracking Total 6 | . 3 5 6 Tactical Retreats 3 | . . . 3 Traps | -11 -10 -9 -8 ------- Run | Yrd Mat Mat Mat Traps Triggered . | . . . . Indirectly . | . . . . Trap Hack Attempts . | . . . . Triggered . | . . . . Disarmed . | . . . . Reprogrammed . | . . . . Reused . | . . . . Traps Extracted . | . . . . Installed . | . . . . Triggered . | . . . . Machines | -11 -10 -9 -8 ---------- Run | Yrd Mat Mat Mat Machines Disabled 2 | . . 2 . Max in Single Turn 1 | . . 1 . Garrison Access 1 | . . . 1 Machines Repaired . | . . . . Machines Dismantled . | . . . . Machines Sabotaged . | . . . . Overloaded Fab Kills . | . . . . Hacking | -11 -10 -9 -8 --------- Run | Yrd Mat Mat Mat Machines Accessed 8 | . 2 4 2 Terminals 7 | . 2 4 1 Fabricators . | . . . . Repair Stations . | . . . . Recycling Units . | . . . . Scanalyzers . | . . . . Garrison Access 1 | . . . 1 Total Hacks 23 | . 5 12 6 Successful 9 | . 2 5 2 Failed 14 | . 3 7 4 Catastrophic 3 | . 1 2 . Database Lockouts . | . . . . Manual 15 | . 1 11 3 Terminals 20 | . 5 12 3 Fabricators . | . . . . Repair Stations . | . . . . Recycling Units . | . . . . Scanalyzers . | . . . . Garrison Access 3 | . . . 3 Terminal Hacks 3 | . 2 1 . Robot Analysis 1 | . 1 . . Branch Access Points 2 | . 1 1 . Fabricator Hacks . | . . . . Repair Station Hacks . | . . . . Recycling Unit Hacks . | . . . . Scanalyzer . | . . . . Garrison Access Hacks 1 | . . . 1 Seal Access 1 | . . . 1 Unauthorized Hacks 5 | . . 4 1 Terminals 5 | . . 4 1 Botnet 5 | . . 4 1 Fabricators . | . . . . Repair Stations . | . . . . Recycling Units . | . . . . Scanalyzers . | . . . . Garrison Access . | . . . . Data Cores Recovered . | . . . . Used . | . . . . Hacking Detections 8 | . 2 4 2 Full Trace Events 1 | . . . 1 Feedback Events . | . . . . Feedback Blocked . | . . . . Robot Schematics Acquired . | . . . . Robots Built . | . . . . Authchips . | . . . . Time . | . . . . Total Robot Build Rating . | . . . . Part Schematics Acquired . | . . . . Parts Built . | . . . . Authchips . | . . . . Time . | . . . . Total Part Build Rating . | . . . . Parts Repaired . | . . . . Time . | . . . . Parts Recycled . | . . . . Recycled Matter . | . . . . Retrieved Matter . | . . . . Retrieved Components . | . . . . Parts Scanalyzed . | . . . . Part Schematics Acquired . | . . . . Parts Damaged . | . . . . Bothacking | -11 -10 -9 -8 ------------ Run | Yrd Mat Mat Mat Used RIF Installer . | . . . . Robots Hacked . | . . . . Non-combat . | . . . . Combat . | . . . . Robot Hacks Applied . | . . . . Relay Couplers Released . | . . . . Fabnet Peak Effective % . | . . . . Robots Rewired . | . . . . Allies Hacked . | . . . . Hacks Repelled . | . . . . Allies | -11 -10 -9 -8 -------- Run | Yrd Mat Mat Mat Total Allies . | . . . . Largest Group . | . . . . Highest-Rated Group . | . . . . Highest-Rated Ally . | . . . . Total Orders . | . . . . Ally Attacks . | . . . . Total Damage . | . . . . Kills . | . . . . Allies Corrupted . | . . . . Allies Melted . | . . . . Intel | -11 -10 -9 -8 ------- Run | Yrd Mat Mat Mat Active Infowar (turns) 710 | . 382 328 . Terrain 710 | . 382 328 . Robot Analysis Total 1 | . 1 . . Derelict Logs Recovered . | . . . . Drone Launches . | . . . . Drone Recoveries . | . . . . Exploration | -11 -10 -9 -8 ------------- Run | Yrd Mat Mat Mat Turns Passed 2408 | 26 391 1364 627 Spaces Moved 1087 | 33 231 604 219 Core 63 | 33 30 . . Treads . | . . . . Legs 1024 | . 201 604 219 Wheels . | . . . . Hover . | . . . . Flight . | . . . . Fastest Speed 50 | 50 50 120 120 Average Speed 152 | 50 121 160 180 Slowest Speed 260 | 50 190 260 260 Overloaded Moves . | . . . . Propulsion Burnouts . | . . . . Robots Hopped . | . . . . Potential Cave-ins . | . . . . Cave-ins Triggered . | . . . . Exploration Rate (%) 32 | 4 51 52 22 Regions Visited 3 Branch Regions . Pre-discovered Areas . | . . . . Known Exits Taken . | . . . . Unknown Exits Taken 3 | 1 1 1 . Scrap Searched . | . . . . Spaces Dug . | . . . . Terrain Destroyed 3 | . . 1 2 Melee . | . . . . Projectile 3 | . . 1 2 AOE . | . . . . Terrain Rammed . | . . . . Walls Destroyed . | . . . . Machines Disabled . | . . . . Actions | -11 -10 -9 -8 --------- Run | Yrd Mat Mat Mat Total 1532 | 40 292 864 336 Wait 202 | . 19 143 40 Move 1084 | 32 230 603 219 Hop . | . . . . Pick Up 42 | 5 7 22 8 Fast Attach 5 | 3 1 . 1 Attach 18 | . 3 9 6 Detach 1 | . . 1 . Swap 6 | . 1 4 1 Drop 13 | . 3 7 3 Fire 160 | . 28 74 58 Melee . | . . . . Ram . | . . . . Kick 1 | . . 1 . Crush . | . . . . Escape Stasis . | . . . . Rewire . | . . . . Trap . | . . . . Miscellaneous . | . . . . Route ------- -11/Scrapyard -10/Materials (discovered 2 exits: *Mat / *Min) -9/Materials (discovered 3 exits: *Mat x2 / Min) -8/Materials (discovered 1 exit: [*Sto]) History --------- Turn | Location | Event 13 | -11/Scrapyard | Discovered new exit (range 16) 27 | -11/Scrapyard | Entered Materials 242 | -10/Materials | Identified exit to Mines 317 | -10/Materials | Build established: Mutant 365 | -10/Materials | Discovered new exit (range 15) 418 | -10/Materials | Entered another Materials area 418 | -9/Materials | Evolved 2 slots: Propulsion x1, Utility x1 1015 | -9/Materials | Discovered new exit (range 16) 1272 | -9/Materials | Lost 3 parts (1n1u1w) 1528 | -9/Materials | Identified exit to Mines 1759 | -9/Materials | Discovered new exit (range 13) 1782 | -9/Materials | Entered another Materials area 1782 | -8/Materials | Evolved 2 slots: Propulsion x1, Utility x1 2099 | -8/Materials | Discovered new exit (range 10) 2409 | -8/Materials | Self-destructed Last Messages --------------- 02284_ Acquired 7 matter. 02286_ Acquired 14 matter. 02287_ Acquired 32 matter. 02289_ Acquired 4 matter. 02302_ Acquired Shield Generator. 02319_ Dropped Mining Laser. 02322_ K-01 Serf collects debris. 02327_ Acquired Power Maul. 02328_ K-01 Serf collects debris. 02365_ Acquired Weight Redist. System. 02405_ Slug penetrates Wall. 02405_ Aluminum Leg destroyed. 02409_ Connecting with Terminal... >>Trojan(Botnet) Trojan loaded successfully. Testing... Terminal linked with 0 systems. Awaiting botnet instructions. 02409_ ALERT: Suspicious activity at Terminal M002. Dispatching Investigation squad. Map ----- +----------------------------------------------------+ | ?????????????????????????????????????????????????? | | ?????????????????????????????????????????????????? | | ?????????????????????????????????????????????????? | | ?????????????????????????????????????????????????? | | ?????????????????????????????????????????????????? | | ?????????????????????????????????????????????????? | | ?????????????????????????????????????????????????? | | ?????????????????????????????????????????????????? | | ?????????????????????????????????????????????????? | | ???????????? ????????????????????????????????????? | | ???????????? #??????????????????????????????????? | | ???????????? #??????????????????????????????????? | | ???????????? #??????????????????????????????????? | | ??????????? #??????????????????????????????????? | | ??????????? #??????????????????????????????????? | | ??????????? #??????????????????????????????????? | | ??????????? #??????????????????????????????????? | | ??????????? #??????????????????????????????????? | | ??????????? #??????????????????????????????????? | | ??????????# #??????????????????????????????????? | | ########### ##?????????????????????????????????? | | = # ############+######g#####?????????? | | # g ?????????? | | + g ????????? | | # T m????????????? | | # @ #???????????????????? | | / # """ """ #???????????????????? | | * # """ """ #????##########?????? | | # """ """ #????# #?????? | | #+######## #????# #?????? | | # #??????# a #????# = #?????? | | # #??????# #????# #?????? | | # #??????# h #????# #?????? | | #??????###/############# #????# #?????? | | #??###### ! ! ##?# #????# #?????? | | #### # #?#^^^#????# = % #?????? | | | # ##?#^ #????# * * #?????? | | < + " " #??# #########+########### | | ## ### # //! "G" #??# % | | ## #?## ## //! * " #??# | | ?#+#??# ##%/!! #??# | | ??????#=!##############??# ########## | | ??????# ########????????# #???# ??? | | ????# # ! #????????# #???? """? | | ""??# # "" ########## ######## #?????""" | | ! """ # =#!"T + #??????# #??????"" | | """ + =+%"" ###########+#####???# #??????? ? | | ####### # #??????# #???# #????????? | | ?###### # #??????# "" #???# #????????? | | ?# ########??????# """ #???# #????????? | +----------------------------------------------------+ Best States ------------- Heat Dissipation 31 Energy Generation 14 Energy Capacity 275 Matter Stores 300 Matter Capacity 300 Sight Range 16 Terrain Scan Range 14 Terrain Scan Density 10 Armor Coverage 300 Evasion (%) 55 Item Schematics ----------------- None Robot Schematics ------------------ None Fabricated ------------ Nothing Repaired ---------- Nothing Alien Tech Used ----------------- None Achievements -------------- None Challenges ------------ None Game ------ Seed TowerMomentumNullifier Manual? 0 Play Time 00:15:21 Cumulative 171.6 hours Start 2025.06.01 @ 17:54:54 End 2025.06.01 @ 18:09:58 Sessions 1 Manual Loads 0 Difficulty Rogue Special Mode None Game No. 268 Rogue 265 Adventurer 3 Explorer 0 Win Type - Total 1 Types 1/0/0/0/0/0/0/0/0/0 Lore% 60 Gallery% 57 Achievement% 45 Wizard Run 0 Options --------- Layout 0 ASCII 0 Keyboard 0 Movement Mouse Keybinds 0 Fullscreen 2 Font 18/SmallcapsGlow Map View 76x50 Zoom Use 0% Tactical HUD 1 Map Filters NONE Filters NONE Steam 1 RUN: 08c2ff9b-5b80-405d-a9f8-a7a88a221b8a